bitfinex/quotes_SOLUSD_20220218
["timestamp","ask_amount","ask_price","bid_price","bid_amount"]
[1645175682541,1.47733052,95.954,95.891,2.6293831]
[1645175683141,1.47733052,95.953,95.891,2.6293831]
[1645175683741,1.47733052,95.952,95.891,2.6293831]
[1645175683941,1.47733052,95.951,95.891,2.6293831]
[1645175684641,1.47733052,95.95,95.891,2.6293831]
[1645175685544,1.47733052,95.951,95.891,2.6293831]
[1645175685742,1.47733052,95.95,95.891,2.6293831]
[1645175686344,1.47733052,95.949,95.891,2.6293831]
[1645175686743,1.47733052,95.948,95.891,2.6293831]
[1645175687343,1.47733052,95.949,95.891,2.6293831]
[1645175687543,1.47733052,95.949,95.892,104.4]
[1645175687943,1.47733052,95.948,95.893,2.6293831]
[1645175688344,1.47733052,95.949,95.893,2.6293831]
[1645175688545,1.47733052,95.948,95.893,2.6293831]
[1645175688743,1.47733052,95.947,95.893,2.6293831]
[1645175689144,1.47733052,95.948,95.893,2.6293831]
[1645175689345,1.47733052,95.949,95.893,2.6293831]
[1645175689544,1.47733052,95.95,95.893,2.6293831]
[1645175689744,1.47733052,95.949,95.893,2.6293831]
[1645175689946,1.47733052,95.947,95.893,2.6293831]
[1645175690255,1.47733052,95.946,95.893,2.6293831]
[1645175690447,1.47733052,95.947,95.893,2.6293831]
[1645175690751,1.47733052,95.946,95.893,2.6293831]
[1645175690947,1.47733052,95.947,95.894,5.212]
[1645175691151,1.47733052,95.949,95.894,5.212]
[1645175691449,1.47733052,95.946,95.895,2.6293831]
[1645175691650,1.47733052,95.944,95.895,2.6293831]
[1645175692047,1.47733052,95.943,95.895,2.6293831]
[1645175692249,1.47733052,95.944,95.895,2.6293831]
[1645175692650,1.47733052,95.943,95.895,2.6293831]
[1645175692850,1.47733052,95.941,95.895,2.6293831]
[1645175693954,1.47733052,95.94,95.895,2.6293831]
[1645175694759,1.47733052,95.939,95.895,2.6293831]
[1645175694957,1.47733052,95.938,95.895,2.6293831]
[1645175695357,1.47733052,95.939,95.895,2.6293831]
[1645175695760,1.47733052,95.94,95.895,2.6293831]
[1645175695960,1.47733052,95.939,95.895,2.6293831]
[1645175697159,1.47733052,95.938,95.895,2.6293831]
[1645175698865,1.47733052,95.937,95.895,2.6293831]
[1645175699063,1.47733052,95.936,95.895,2.6293831]
[1645175699564,1.47733052,95.937,95.895,2.6293831]
[1645175699962,1.47733052,95.936,95.895,2.6293831]
[1645175700366,1.47733052,95.938,95.896,5.212]
[1645175700563,1.47733052,95.939,95.896,5.212]
[1645175700789,1.47733052,95.941,95.897,2.6293831]
[1645175700988,1.47733052,95.944,95.898,5.211]
[1645175701191,1.47733052,95.946,95.902,104.4]
[1645175701393,1.47733052,95.949,95.903,5.211]
[1645175701588,1.47733052,95.95,95.904,104.4]
[1645175701990,1.47733052,95.95,95.905,5.212]
[1645175702190,1.47733052,95.949,95.905,7.8413831]
[1645175702388,1.47733052,95.95,95.906,104.4]
[1645175702590,1.47733052,95.95,95.907,5.211]
[1645175702990,1.47733052,95.95,95.908,2.6293831]
[1645175703190,1.47733052,95.952,95.909,5.212]
[1645175703396,67.1033,96.03,95.92,15.6349]
[1645175703397,1.47733052,95.959,95.92,15.6349]
[1645175703591,1.47733052,95.961,95.923,104.4]
[1645175703791,1.47733052,95.963,95.923,111.14]
[1645175704192,1.47733052,95.963,95.924,2.6293831]
[1645175704393,2.92559667,95.99,95.924,2.6293831]
[1645175704394,1.47733052,95.967,95.925,5.211]
[1645175704691,1.47733052,95.968,95.927,104.4]
[1645175704890,5.92902253,96.023,95.927,104.4]
[1645175704891,1.47733052,95.967,95.927,104.4]
[1645175705091,1.47976084,95.973,95.931,104.4]
[1645175705298,1.47976084,95.981,95.931,104.4]
[1645175705492,1.47976084,95.982,95.933,104.4]
[1645175705693,1.47976084,95.987,95.933,104.4]
[1645175705892,1.47976084,95.987,95.935,104.4]
[1645175706291,1.47976084,95.987,95.936,2.6293831]
[1645175706495,1.47976084,95.988,95.941,104.4]
[1645175706891,1.47976084,95.991,95.942,2.6293831]
[1645175707092,1.47976084,95.991,95.943,127.3206]
[1645175707292,1.47976084,95.991,95.943,131.7906]
[1645175707492,1.47976084,95.991,95.944,2.6293831]
[1645175707692,1.47976084,95.991,95.945,104.4]
[1645175707891,1.47976084,95.991,95.946,5.21]
[1645175708092,1.47976084,95.992,95.947,104.4]
[1645175708495,1.47976084,95.991,95.953,104.4]
[1645175708898,1.47976084,95.991,95.954,2.6293831]
[1645175709099,1.47976084,95.997,95.955,104.4]
[1645175709298,1.47976084,95.999,95.955,104.4]
[1645175709498,1.47976084,95.998,95.955,104.4]
[1645175709698,1.47976084,95.997,95.957,104.4]
[1645175709900,1.47976084,95.998,95.957,104.4]
[1645175710697,1.47976084,96.0,95.956,23.1902]
[1645175711100,1.47976084,95.999,95.956,23.1902]
[1645175711299,1.47976084,95.995,95.956,23.1902]
[1645175711502,1.47976084,95.996,95.956,23.1902]
[1645175712200,1.47976084,95.991,95.956,23.1902]
[1645175712401,1.47976084,95.989,95.956,23.1902]
[1645175713002,1.47976084,95.988,95.956,23.1902]
[1645175713401,1.47976084,95.987,95.956,23.1902]
[1645175713602,1.47976084,95.987,95.931,5.208]
[1645175713801,1.47976084,95.987,95.925,2.6293831]
[1645175713802,1.47976084,95.987,95.93,23.5168]
[1645175714004,1.47976084,95.981,95.93,23.5168]
[1645175714204,1.47976084,95.979,95.93,23.5168]
[1645175714801,1.47976084,95.978,95.93,23.5168]
[1645175715001,1.47976084,95.977,95.93,23.5168]
[1645175715301,1.47976084,95.976,95.93,23.5168]
[1645175715504,52.76649136,95.975,95.93,23.5168]
[1645175715803,1.47976084,95.974,95.93,23.5168]
[1645175716203,1.47976084,95.972,95.93,23.5168]
[1645175716402,1.47976084,95.97,95.93,23.5168]
[1645175716604,52.76649136,95.975,95.93,23.5168]
[1645175716605,1.47976084,95.965,95.93,23.5168]
[1645175718112,1.47976084,95.968,95.93,23.5168]
[1645175718309,1.47976084,95.964,95.93,23.5168]
[1645175719106,1.47976084,95.966,95.93,23.5168]
[1645175719308,1.47976084,95.974,95.931,5.21]
[1645175719507,1.47976084,95.973,95.931,5.21]
[1645175720308,1.47976084,95.971,95.931,5.21]
[1645175720510,1.47976084,95.972,95.93,23.5168]
[1645175720710,1.47976084,95.971,95.93,23.5168]
[1645175720909,1.47976084,95.97,95.931,5.21]
[1645175721110,1.47976084,95.971,95.93,23.5168]
[1645175721313,1.47976084,95.973,95.931,5.21]
[1645175721514,1.47976084,95.971,95.93,23.5168]
[1645175722111,1.47976084,95.97,95.93,23.5168]
[1645175722317,1.47976084,95.969,95.93,23.5168]
[1645175722711,1.47976084,95.968,95.93,23.5168]
[1645175723515,1.47976084,95.969,95.93,23.5168]
[1645175723715,1.47976084,95.968,95.93,23.5168]
[1645175724018,1.47976084,95.967,95.93,23.5168]
[1645175724620,1.47976084,95.968,95.93,26.1461831]
[1645175724817,1.47976084,95.968,95.931,109.61]
[1645175725217,1.47976084,95.981,95.931,109.61]
[1645175725415,52.123,96.03,95.932,2.6293831]
[1645175725416,1.47976084,95.984,95.932,2.6293831]
[1645175725620,1.47976084,95.984,95.933,5.208]
[1645175726017,1.47976084,95.984,95.934,2.6293831]
[1645175726217,1.47976084,95.981,95.934,2.6293831]
[1645175726417,1.47976084,95.981,95.935,5.21]
[1645175726717,1.47976084,95.98,95.935,5.21]
[1645175726942,1.47976084,95.98,95.936,2.6293831]
[1645175727117,1.47976084,95.98,95.937,149.53940662]
[1645175727518,1.47976084,95.979,95.937,149.53940662]
[1645175727719,1.47976084,95.978,95.937,149.53940662]
[1645175728018,1.47976084,95.975,95.937,149.53940662]
[1645175728222,1.47976084,95.974,95.937,149.53940662]
[1645175728918,1.47976084,95.973,95.937,149.53940662]
[1645175729521,1.47976084,95.976,95.937,149.53940662]
[1645175729719,1.47976084,95.978,95.938,5.21]
[1645175729918,1.47976084,95.977,95.937,149.53940662]
[1645175730123,1.47976084,95.975,95.937,149.53940662]
[1645175730320,1.47976084,95.974,95.937,149.53940662]
[1645175730920,1.47976084,95.974,95.937,152.16878972]
[1645175731620,0.50368413,108.18,95.941,104.4]
[1645175731621,1.47976084,95.978,95.941,104.4]
[1645175731821,1.47976084,95.979,95.941,104.4]
[1645175732022,1.47976084,95.979,95.943,104.4]
[1645175732222,1.47976084,95.98,95.943,104.4]
[1645175732422,1.47976084,95.98,95.944,2.6293831]
[1645175732821,1.47976084,95.979,95.944,2.6293831]
[1645175733022,1.47976084,95.979,95.946,104.4]
[1645175733228,1.47976084,95.979,95.945,23.1701]
[1645175733523,1.47976084,95.978,95.947,2.6293831]
[1645175733735,1.47976084,95.979,95.947,2.6293831]
[1645175733932,1.47976084,95.981,95.948,5.208]
[1645175734334,1.47976084,95.982,95.948,5.208]
[1645175734555,1.47976084,95.979,95.947,2.6293831]
[1645175734848,1.47976084,95.981,95.948,5.21]
[1645175735453,1.47976084,95.983,95.948,5.21]
[1645175735750,1.47976084,95.982,95.948,5.21]
[1645175735950,1.47976084,95.981,95.947,2.6293831]
[1645175736352,1.47976084,95.982,95.947,2.6293831]
[1645175736550,1.47976084,95.983,95.947,2.6293831]
[1645175736751,1.47976084,95.981,95.947,2.6293831]
[1645175736951,1.47976084,95.98,95.947,2.6293831]
[1645175737552,1.47976084,95.979,95.946,104.4]
[1645175738651,5.92758812,96.006,95.947,2.6293831]
[1645175738652,1.47976084,95.978,95.947,2.6293831]
[1645175738857,1.47976084,95.979,95.945,23.1701]
[1645175739151,1.47976084,95.983,95.945,23.1701]
[1645175739352,1.47976084,95.982,95.945,23.1701]
[1645175739751,1.47976084,95.983,95.945,23.1701]
[1645175739955,1.47976084,95.982,95.945,23.1701]
[1645175740753,1.47976084,95.981,95.945,23.1701]
[1645175741356,1.47976084,95.983,95.946,5.21]
[1645175741656,1.47976084,95.981,95.946,5.21]
[1645175741856,1.47976084,95.981,95.945,23.1701]
[1645175742254,1.47976084,95.98,95.945,23.1701]
[1645175744156,40.80821031,95.979,95.945,23.1701]
[1645175744855,1.47976084,95.98,95.945,23.1701]
[1645175745855,1.47976084,95.978,95.945,23.1701]
[1645175746256,1.47976084,95.975,95.945,23.1701]
[1645175746457,1.47976084,95.977,95.945,23.1701]
[1645175746858,1.47976084,95.978,95.946,107.0293831]
[1645175747459,1.47976084,95.978,95.947,2.6293831]
[1645175747959,1.47976084,95.977,95.947,2.6293831]
[1645175748559,1.47976084,95.976,95.947,2.6293831]
[1645175749660,1.47976084,95.975,95.947,2.6293831]
[1645175749860,1.47976084,95.976,95.947,2.6293831]
[1645175750062,1.47976084,95.975,95.947,2.6293831]
[1645175750560,0.00976084,95.975,95.951,104.4]
[1645175750760,2.92559667,96.016,95.952,5.21]
[1645175750961,4.42103976,96.043,95.953,104.4]
[1645175750962,2.92559667,96.018,95.953,104.4]
[1645175751164,4.42103976,96.065,95.955,166.77]
[1645175751362,52.17711787,96.064,95.957,166.77]
[1645175751564,5.92533073,96.063,95.971,104.4]
[1645175751760,5.92533073,96.063,95.991,104.4]
[1645175751959,5.92533073,96.063,95.993,104.4]
[1645175752160,5.92533073,96.063,95.995,104.4]
[1645175752361,5.92533073,96.063,96.0,14.98]
[1645175752562,4.42103976,96.096,96.001,109.606]
[1645175752764,15.6228,96.09,96.003,104.4]
[1645175752962,15.6228,96.09,96.004,5.205]
[1645175753161,5.92358093,96.089,96.005,104.4]
[1645175753362,5.92358093,96.089,96.005,107.0293831]
[1645175753663,48.69411961,96.088,96.005,107.0293831]
[1645175753863,48.69411961,96.088,96.009,104.4]
[1645175754063,5.92358093,96.087,96.01,5.205]
[1645175754461,5.92358093,96.087,96.011,104.4]
[1645175755666,48.69411961,96.088,96.011,104.4]
[1645175755866,5.92323796,96.087,96.012,5.205]
[1645175756864,48.69411961,96.088,96.012,5.205]
[1645175757465,15.624,96.08,96.012,5.205]
[1645175757667,15.624,96.08,96.011,104.4]
[1645175759064,15.624,96.08,96.012,5.205]
[1645175759664,15.624,96.08,96.009,109.605]
[1645175765978,15.624,96.08,96.011,104.4]
[1645175766177,15.624,96.08,96.012,5.205]
[1645175770402,48.69411961,96.088,96.012,5.205]
[1645175772110,48.69411961,96.088,96.021,104.4]
[1645175772303,48.69411961,96.088,96.025,104.4]
[1645175773604,48.69411961,96.088,96.025,109.605]
[1645175775811,48.69411961,96.088,96.025,104.4]
[1645175777112,48.69411961,96.088,96.024,52.61432524]
[1645175778121,48.69411961,96.088,96.025,104.4]
[1645175778512,48.69411961,96.088,96.024,52.61432524]
[1645175778914,48.69411961,96.088,96.025,104.4]
[1645175780513,5.92283037,96.087,96.025,5.205]
[1645175787219,5.92283037,96.087,96.025,109.605]
[1645175787420,5.92283037,96.087,96.025,5.205]
[1645175787621,5.92283037,96.087,96.024,52.61432524]
[1645175791426,5.92283037,96.087,96.025,104.4]
[1645175791629,5.92283037,96.087,96.026,5.205]
[1645175793026,5.92283037,96.087,96.024,52.61432524]
[1645175793833,5.92283037,96.087,96.025,104.4]
[1645175800155,5.92283037,96.087,96.024,52.61432524]
[1645175802160,5.92283037,96.087,96.025,104.4]
[1645175803059,5.92283037,96.087,96.024,52.61432524]
[1645175803962,15.6242,96.08,96.024,52.61432524]
[1645175804260,5.92283037,96.079,96.024,52.61432524]
[1645175809064,15.6258,96.07,96.011,5.205]
[1645175809267,15.6258,96.07,96.007,5.205]
[1645175809467,5.92283037,96.069,96.003,5.206]
[1645175809669,5.92283037,96.069,95.985,2.6293831]
[1645175809670,5.92283037,96.069,95.985,7.8353831]
[1645175809872,5.92283037,96.087,95.985,2.6293831]
[1645175810066,5.92283037,96.087,96.003,48.67272578]
[1645175810067,15.6275,96.06,96.003,48.67272578]
[1645175810268,5.92283037,96.059,96.004,22.5417]
[1645175810472,42.04337703,96.058,96.004,22.5417]
[1645175810670,5.92283037,96.057,96.004,22.5417]
[1645175811075,5.92283037,96.057,95.986,5.205]
[1645175811276,5.92283037,96.057,95.974,2.6293831]
[1645175811277,11.58283037,96.057,95.971,15.2497]
[1645175811478,11.58283037,96.057,95.966,5.206]
[1645175811479,5.92283037,96.056,95.966,29.6508]
[1645175811672,15.6291,96.05,95.972,29.62692166]
[1645175811878,15.6291,96.05,95.973,48.10359146]
[1645175812176,5.92283037,96.049,95.973,48.10359146]
[1645175812573,5.92283037,96.048,95.973,48.10359146]
[1645175812974,5.92283037,96.057,95.973,48.10359146]
[1645175813175,5.92283037,96.047,95.973,48.10359146]
[1645175813476,49.02162767,96.039,95.973,48.10359146]
[1645175815377,15.6325,96.03,95.973,48.10359146]
[1645175816587,15.6325,96.03,95.966,24.4448]
[1645175817490,15.6325,96.03,95.967,42.06406479]
[1645175821414,6.54103976,96.082,95.968,107.0293831]
[1645175821415,52.0994,96.07,95.968,107.0293831]
[1645175821612,5.92489637,96.069,95.968,112.2363831]
[1645175821821,5.92489637,96.069,95.97,104.4]
[1645175822013,5.92489637,96.069,95.971,5.207]
[1645175822216,5.92489637,96.069,95.972,104.4]
[1645175822415,15.6272,96.06,95.98,15.6269]
[1645175822615,15.6272,96.06,95.967,42.06406479]
[1645175822616,15.6272,96.06,95.972,7.8363831]
[1645175822814,5.92546291,96.059,95.967,42.06406479]
[1645175823416,5.92546291,96.067,95.967,42.06406479]
[1645175823615,5.92546291,96.067,95.968,5.207]
[1645175824021,15.6341,96.04,95.968,5.207]
[1645175824215,30.6141,96.04,95.949,5.207]
[1645175824418,30.6141,96.04,95.939,29.8511]
[1645175824618,30.6141,96.04,95.94,104.4]
[1645175824820,30.6141,96.04,95.941,5.208]
[1645175825119,15.6378,96.01,95.942,72.73635458]
[1645175825318,41.87984457,96.009,95.942,72.73635458]
[1645175825524,41.87984457,96.009,95.943,5.208]
[1645175826419,15.6378,96.0,95.943,5.208]
[1645175828320,15.6378,96.0,95.939,24.6431]
[1645175829123,15.6378,96.0,95.94,52.83386474]
[1645175829424,14.98,96.02,95.941,109.608]
[1645175829425,30.6146,96.02,95.941,109.608]
[1645175829622,30.6146,96.02,95.941,112.2373831]
[1645175829823,30.6146,96.02,95.942,2.6293831]
[1645175830022,30.6146,96.02,95.943,5.208]
[1645175830224,39.91381189,96.019,95.943,5.208]
[1645175831022,39.91381189,96.019,95.941,5.208]
[1645175831424,15.636,96.01,95.941,109.608]
[1645175832430,15.636,96.01,95.941,5.208]
[1645175834927,15.636,96.01,95.94,52.83386474]
[1645175836633,15.636,96.01,95.941,104.4]
[1645175836930,15.636,96.01,95.942,5.208]
[1645175837731,15.636,96.01,95.941,5.208]
[1645175840235,15.636,96.01,95.94,52.83386474]
[1645175840437,15.636,96.01,95.941,5.208]
[1645175840638,15.636,96.01,95.94,52.83386474]
[1645175841836,15.636,96.01,95.941,5.208]
[1645175849246,15.636,96.01,95.94,58.04186474]
[1645175852253,15.636,96.01,95.941,104.4]
[1645175852953,15.6331,96.03,95.942,2.6293831]
[1645175853153,15.6331,96.03,95.943,104.4]
[1645175853359,15.6331,96.03,95.944,5.208]
[1645175853554,15.6331,96.03,95.945,104.4]
[1645175853960,44.76042018,96.029,95.945,107.0293831]
[1645175854157,5.9266559,96.028,95.947,104.4]
[1645175854358,38.83376428,96.029,95.951,104.4]
[1645175854578,38.83376428,96.029,95.953,104.4]
[1645175855277,15.6337,96.02,95.953,104.4]
[1645175856879,15.6337,96.02,95.952,23.0004]
[1645175859380,5.92738407,96.019,95.952,23.0004]
[1645175859580,15.6366,96.01,95.952,23.0004]
[1645175866891,15.6366,96.01,95.953,5.208]
[1645175867693,15.6366,96.01,95.954,29.6357512]
[1645175869298,15.6366,96.01,95.953,29.6357512]
[1645175870598,1.47978876,96.005,95.953,29.6357512]
[1645175871899,1.47978876,96.005,95.953,134.0357512]
[1645175872098,1.47978876,96.013,95.955,104.4]
[1645175872399,1.47978876,96.014,95.956,7.8373831]
[1645175872598,1.47978876,96.014,95.956,37.4731343]
[1645175872797,1.47978876,96.014,95.957,2.6293831]
[1645175872998,1.47978876,96.015,95.958,5.208]
[1645175873399,1.47978876,96.015,95.959,32.2651343]
[1645175873599,1.47978876,96.017,95.959,32.2651343]
[1645175873898,1.47978876,96.017,95.956,5.208]
[1645175873899,1.47978876,96.018,95.96,32.2651343]
[1645175874399,1.47978876,96.018,95.961,29.6357512]
[1645175875000,1.47978876,96.019,95.961,29.6357512]
[1645175875200,1.47978876,96.016,95.961,29.6357512]
[1645175875400,1.47978876,96.014,95.961,29.6357512]
[1645175875600,1.47978876,96.014,95.953,29.6357512]
[1645175876302,1.47978876,96.014,95.953,134.0357512]
[1645175876500,1.47978876,96.014,95.954,2.6293831]
[1645175876705,15.634,96.02,95.954,2.6293831]
[1645175876706,1.47978876,96.017,95.955,109.608]
[1645175876901,1.47978876,96.021,95.955,109.608]
[1645175877102,1.47978876,96.022,95.956,32.2651343]
[1645175877304,1.47978876,96.022,95.957,5.208]
[1645175877503,1.47978876,96.022,95.957,29.6357512]
[1645175877804,1.47978876,96.02,95.957,29.6357512]
[1645175878004,1.47978876,96.022,95.958,109.608]
[1645175878206,1.47978876,96.022,95.958,112.2373831]
[1645175878407,1.47978876,96.02,95.96,104.4]
[1645175878806,1.47978876,96.023,95.962,104.4]
[1645175879008,1.47978876,96.024,95.962,104.4]
[1645175879309,38.83376428,96.029,95.964,104.4]
[1645175879707,1.47978876,96.033,95.965,2.6293831]
[1645175879910,1.47978876,96.038,95.966,104.4]
[1645175880109,1.47978876,96.039,95.966,104.4]
[1645175880309,1.47978876,96.038,95.968,104.4]
[1645175880510,1.47978876,96.037,95.968,104.4]
[1645175880734,1.47978876,96.037,95.97,104.4]
[1645175881112,1.47978876,96.037,95.971,2.6293831]
[1645175881312,39.28220678,96.038,95.972,109.608]
[1645175881513,39.28220678,96.038,95.972,104.4]
[1645175881713,1.47978876,96.036,95.974,104.4]
[1645175882112,1.47978876,96.033,95.975,29.6357512]
[1645175882314,1.47978876,96.032,95.976,24.6299]
[1645175882713,1.47978876,96.033,95.976,24.6299]
[1645175882914,1.47978876,96.032,95.977,29.6357512]
[1645175883114,1.47978876,96.037,95.977,29.6357512]
[1645175883517,39.28220678,96.038,95.977,29.6357512]
[1645175884616,40.76199554,96.038,95.977,29.6357512]
[1645175884817,39.28220678,96.038,95.977,29.6357512]
[1645175885017,1.47978876,96.036,95.977,29.6357512]
[1645175885217,1.47978876,96.037,95.977,29.6357512]
[1645175885416,39.28220678,96.038,95.977,29.6357512]
[1645175885915,1.47978876,96.037,95.977,29.6357512]
[1645175887026,1.47978876,96.035,95.977,29.6357512]
[1645175887224,1.47978876,96.033,95.977,29.6357512]
[1645175887425,1.47978876,96.032,95.976,24.6299]
[1645175887626,1.47978876,96.028,95.976,24.6299]
[1645175887825,1.47978876,96.026,95.976,24.6299]
[1645175888648,1.47978876,96.026,95.977,50.53716255]
[1645175888844,1.47978876,96.027,95.977,50.53716255]
[1645175889249,1.47978876,96.026,95.977,50.53716255]
[1645175889444,15.6339,96.02,95.977,50.53716255]
[1645175892951,1.47978876,96.026,95.977,50.53716255]
[1645175893351,1.47978876,96.035,95.977,50.53716255]
[1645175893550,1.47978876,96.036,95.978,29.62626348]
[1645175893951,1.47978876,96.034,95.978,29.62626348]
[1645175894151,1.47978876,96.031,95.978,29.62626348]
[1645175894451,1.47978876,96.032,95.977,50.53716255]
[1645175895052,1.47978876,96.033,95.977,50.53716255]
[1645175896856,1.47978876,96.031,95.977,50.53716255]
[1645175897056,1.47978876,96.03,95.977,50.53716255]
[1645175900160,1.47978876,96.031,95.977,50.53716255]
[1645175901756,1.47978876,96.032,95.978,104.4]
[1645175901959,1.47978876,96.032,95.978,2.6293831]
[1645175902157,1.47978876,96.032,95.978,136.6549998]
[1645175902356,1.47978876,96.033,95.979,2.6293831]
[1645175902557,1.47978876,96.033,95.979,32.2549998]
[1645175902957,1.47978876,96.033,95.98,18.2567831]
[1645175903157,1.47978876,96.032,95.981,104.4]
[1645175903356,1.47978876,96.032,95.981,107.0293831]
[1645175903557,1.47978876,96.032,95.982,2.6293831]
[1645175903958,1.47978876,96.032,95.976,24.6299]
[1645175904157,39.28220678,96.038,95.96,5.208]
[1645175904158,1.47978876,96.028,95.96,5.208]
[1645175904360,1.47978876,96.019,95.955,113.9]
[1645175904658,1.47978876,96.016,95.955,113.9]
[1645175904858,1.47978876,96.014,95.966,52.71807649]
[1645175905058,1.47978876,96.014,95.967,23.7413]
[1645175905459,1.47978876,96.012,95.967,23.7413]
[1645175906159,1.47978876,96.011,95.967,23.7413]
[1645175906561,1.47978876,96.012,95.967,23.7413]
[1645175907061,1.47978876,96.011,95.967,23.7413]
[1645175907461,51.16567306,96.009,95.967,23.7413]
[1645175909564,1.47978876,96.008,95.967,23.7413]
[1645175909767,51.16567306,96.009,95.967,23.7413]
[1645175909768,1.47978876,96.007,95.967,23.7413]
[1645175909966,1.47978876,96.007,95.955,113.9]
[1645175910166,1.47978876,96.001,95.955,113.9]
[1645175910369,1.47978876,96.003,95.955,113.9]
[1645175910568,1.47978876,96.005,95.955,113.9]
[1645175911068,15.6368,96.0,95.955,113.9]
[1645175915999,1.47978876,95.994,95.955,113.9]
[1645175916200,15.6411,95.99,95.955,113.9]
[1645175917699,1.47978876,95.988,95.955,113.9]
[1645175917900,15.6424,95.98,95.955,113.9]
[1645175918499,39.02170297,95.979,95.955,113.9]
[1645175920500,15.642,95.97,95.941,0.92838512]
[1645175929312,15.642,95.97,95.941,0.89490054]
[1645175931312,17.12178876,95.97,95.891,5.21]
[1645175931513,15.642,95.97,95.879,5.211]
[1645175931811,17.12178876,95.97,95.879,5.211]
[1645175932213,17.12178876,95.97,95.891,48.85255365]
[1645175932414,17.12178876,95.97,95.879,5.211]
[1645175932613,15.6483,95.96,95.879,5.211]
[1645175933014,104.4,95.959,95.879,5.211]
[1645175933213,104.4,95.949,95.879,5.211]
[1645175933414,44.02521247,95.931,95.879,5.211]
[1645175933620,50.67500123,95.931,95.879,5.211]
[1645175933814,15.6562,95.92,95.879,5.211]
[1645175935817,15.6562,95.92,95.879,55.07415005]
[1645175936019,15.6562,95.92,95.879,5.211]
[1645175938220,15.6475,95.94,95.879,5.211]
[1645175939020,54.42892294,95.939,95.88,24.4849]
[1645175940122,15.6486,95.93,95.88,24.4849]
[1645175940523,15.6486,95.93,95.881,104.4]
[1645175940752,1.47978876,95.964,95.881,104.4]
[1645175940924,1.47978876,95.966,95.882,2.6293831]
[1645175941124,1.47978876,95.967,95.882,2.6293831]
[1645175941330,1.47978876,95.968,95.882,2.6293831]
[1645175941526,46.68857954,95.967,95.883,23.2442]
[1645175942125,46.68857954,95.967,95.885,52.6891826]
[1645175942325,15.6464,95.95,95.885,52.6891826]
[1645175942526,50.90241184,95.949,95.886,7.8413831]
[1645175942927,50.90241184,95.949,95.887,2.6293831]
[1645175943128,50.90241184,95.949,95.888,5.212]
[1645175943528,50.90241184,95.949,95.889,2.6293831]
[1645175943930,50.90241184,95.949,95.89,5.212]
[1645175944430,50.90241184,95.949,95.891,23.4954]
[1645175944629,50.90241184,95.949,95.892,5.212]
[1645175945829,50.90241184,95.949,95.891,23.4954]
[1645175946031,15.6464,95.95,95.892,104.4]
[1645175946331,15.6464,95.95,95.892,109.612]
[1645175946536,15.6427,95.97,95.893,2.6293831]
[1645175946732,15.6427,95.97,95.894,5.212]
[1645175947137,51.46905513,95.969,95.895,2.6293831]
[1645175948967,51.46905513,95.969,95.893,5.212]
[1645175949470,15.6435,95.96,95.893,5.212]
[1645175952870,15.6435,95.96,95.892,5.212]
[1645175953874,1.47978876,95.951,95.892,5.212]
[1645175954075,68.1817412,95.95,95.891,23.4954]
[1645175954277,66.70195244,95.95,95.891,23.4954]
[1645175954676,1.47978876,95.949,95.891,23.4954]
[1645175955077,52.5356412,95.95,95.891,23.4954]
[1645175955277,51.05585244,95.95,95.891,23.4954]
[1645175955478,1.47978876,95.949,95.891,23.4954]
[1645175955679,1.47978876,95.948,95.891,23.4954]
[1645175956478,15.6465,95.94,95.891,23.4954]
[1645175966596,1.47978876,95.939,95.891,23.4954]
[1645175967122,15.6487,95.93,95.891,23.4954]
[1645175967525,1.47978876,95.925,95.891,23.4954]
[1645175967719,1.47978876,95.924,95.891,23.4954]
[1645175967920,1.47978876,95.92,95.871,43.27798028]
[1645175968321,49.90182857,95.923,95.871,43.27798028]
[1645175968322,1.47978876,95.917,95.871,43.27798028]
[1645175968721,1.47978876,95.919,95.871,43.27798028]
[1645175968923,1.47978876,95.921,95.871,43.27798028]
[1645175969319,15.6504,95.92,95.872,23.1121]
[1645175971129,1.47978876,95.914,95.872,23.1121]
[1645175971330,15.6525,95.91,95.872,23.1121]
[1645175974238,15.6525,95.91,95.851,5.214]